{"text_format":"3","workbook":"xlsx","n_sheets":12,"sheets":["1 кл..","2 кл.."," 3 кл..","4 кл..","5 кл..","6 кл..  ","7 кл..","8 кл..","9-ФК..","10а (унив.)","11а (фил..)","11б (ест.-науч.)"],"read":"whole","date_system":"1900"}

{"sheet":"1 кл..","index":0,"n_rows":23,"n_cols":8,"rows_kept":23,"merged":[[0,1,0,7],[1,1,1,7],[2,1,2,7],[3,1,3,7],[4,1,6,1],[4,2,6,2],[4,3,4,6],[4,7,6,7],[6,3,6,6],[7,1,8,1],[9,1,10,1],[15,1,16,1],[19,1,19,2],[20,1,20,2],[22,1,22,2]]}
[null,"УЧЕБНЫЙ ПЛАН"]
[null,"Муниципального бюджетного общеобразовательного учреждения \n \"Средняя общеобразовательная школа №175\" Советского района города Казани"]
[null,"на 2018/2019 учебный год "]
[null,"для 1 классов"]
[null,"Предметные области","Учебные предметы","классы",{"$nulls":3},"Всего часов"]
[{"$nulls":3},"1 класс                (2018-2019)","2 класс                (2019-2020)","3 класс                (2020-2021)","4 класс                (2021-2022)"]
[{"$nulls":3},"количество часов в неделю"]
[null,"Русский язык и литературное чтение ","Русский язык",4,5,5,5,{"$f":"SUM(D8:G8)","v":19}]
[null,null,"Литературное чтение",2,3,3,3,{"$f":"SUM(D9:G9)","v":11}]
[null,"Родной язык и литературное чтение на родном языке","Родной язык",2,2,2,2,{"$f":"SUM(D10:G10)","v":8}]
[null,null,"Литературное чтение на родном языке",1,1,1,1,{"$f":"SUM(D11:G11)","v":4}]
[null,"Иностранный язык","Английский язык",null,2,2,2,6]
[null,"Математика и информатика","Математика ",4,4,4,4,16]
[null,"Обществознание и естествознание","Окружающий мир ",2,2,2,2,8]
[null,"Основы религиозных культур и светской этики","Основы религиозных культур и светской этики",{"$nulls":3},1,{"$f":"SUM(D15:G15)","v":1}]
[null,"Искусство","Музыка",1,1,1,1,4]
[null,null,"Изобразительное искусство",1,1,1,1,4]
[null,"Технология","Технология",1,1,1,1,4]
[null,"Физическая культура ","Физическая культура ",3,3,3,3,12]
[null,"ИТОГО:",null,{"$f":"SUM(D8:D19)","v":21},{"$f":"SUM(E8:E19)","v":25},{"$f":"SUM(F8:F19)","v":25},{"$f":"SUM(G8:G19)","v":26},97]
[null,"Часть, формируемая участниками образовательных отношений",null,null,1,1,null,2]
[null,"Русский язык и литературное чтение ","Русский язык",null,1,1,null,2]
[null,"Максимально допустимая недельная нагрузка ",null,{"$f":"SUM(D20,D21)","v":21},26,26,{"$f":"SUM(G20,G21)","v":26},99]

{"sheet":"2 кл..","index":1,"n_rows":23,"n_cols":8,"rows_kept":23,"merged":[[0,1,0,7],[1,1,1,7],[2,1,2,7],[3,1,3,7],[4,1,6,1],[4,2,6,2],[4,3,4,6],[4,7,6,7],[6,3,6,6],[7,1,8,1],[9,1,10,1],[15,1,16,1],[19,1,19,2],[20,1,20,2],[22,1,22,2]]}
[null,"УЧЕБНЫЙ ПЛАН"]
[null,"Муниципального бюджетного общеобразовательного учреждения \n \"Средняя общеобразовательная школа №175\" Советского района города Казани"]
[null,"на 2018/2019 учебный год "]
[null,"для 2 классов"]
[null,"Предметные области","Учебные предметы","классы",{"$nulls":3},"Всего часов"]
[{"$nulls":3},"1 класс                (2017-2018)","2 класс                (2018-2019)","3 класс                (2019-2020)","4 класс                (2020-2021)"]
[{"$nulls":3},"количество часов в неделю"]
[null,"Русский язык и литературное чтение ","Русский язык",4,5,5,5,{"$f":"SUM(D8:G8)","v":19}]
[null,null,"Литературное чтение",2,3,3,3,{"$f":"SUM(D9:G9)","v":11}]
[null,"Родной язык и литературное чтение на родном языке","Родной язык",2,2,2,2,{"$f":"SUM(D10:G10)","v":8}]
[null,null,"Литературное чтение на родном языке",1,1,1,1,{"$f":"SUM(D11:G11)","v":4}]
[null,"Иностранный язык","Английский язык",null,2,2,2,6]
[null,"Математика и информатика","Математика ",4,4,4,4,16]
[null,"Обществознание и естествознание","Окружающий мир ",2,2,2,2,8]
[null,"Основы религиозных культур и светской этики","Основы религиозных культур и светской этики",{"$nulls":3},1,{"$f":"SUM(D15:G15)","v":1}]
[null,"Искусство","Музыка",1,1,1,1,4]
[null,null,"Изобразительное искусство",1,1,1,1,4]
[null,"Технология","Технология",1,1,1,1,4]
[null,"Физическая культура ","Физическая культура ",3,3,3,3,12]
[null,"ИТОГО:",null,{"$f":"SUM(D8:D19)","v":21},{"$f":"SUM(E8:E19)","v":25},{"$f":"SUM(F8:F19)","v":25},{"$f":"SUM(G8:G19)","v":26},97]
[null,"Часть, формируемая участниками образовательных отношений",null,null,1,1,null,2]
[null,"Русский язык и литературное чтение ","Русский язык",null,1,1,null,2]
[null,"Максимально допустимая недельная нагрузка ",null,{"$f":"SUM(D20,D21)","v":21},26,26,{"$f":"SUM(G20,G21)","v":26},99]

{"sheet":" 3 кл..","index":2,"n_rows":24,"n_cols":8,"rows_kept":24,"merged":[[0,1,0,7],[1,1,1,7],[2,1,2,7],[3,1,3,7],[5,1,7,1],[5,2,7,2],[5,3,5,6],[5,7,7,7],[7,3,7,6],[8,1,9,1],[10,1,11,1],[16,1,17,1],[20,1,20,2],[21,1,21,2],[23,1,23,2]]}
[null,"УЧЕБНЫЙ ПЛАН"]
[null,"Муниципального бюджетного общеобразовательного учреждения \n \"Средняя общеобразовательная школа №175\" Советского района города Казани"]
[null,"на 2018/2019 учебный год "]
[null,"для 3 классов "]
[]
[null,"Предметные области","Учебные предметы","классы",{"$nulls":3},"Всего часов"]
[{"$nulls":3},"1 класс                (2016-2017)","2 класс                (2017-2018)","3 класс                (2018-2019)","4 класс                (2019-2020)"]
[{"$nulls":3},"количество часов в неделю"]
[null,"Русский язык и литературное чтение ","Русский язык",4,5,5,5,{"$f":"SUM(D9:G9)","v":19}]
[null,null,"Литературное чтение",2,3,3,3,{"$f":"SUM(D10:G10)","v":11}]
[null,"Родной язык и литературное чтение на родном языке","Родной язык",2,2,2,2,8]
[null,null,"Литературное чтение на родном языке",1,1,1,1,4]
[null,"Иностранный язык","Английский язык",null,2,2,2,6]
[null,"Математика и информатика","Математика ",4,4,4,4,16]
[null,"Обществознание и естествознание","Окружающий мир ",2,2,2,2,8]
[null,"Основы религиозных культур и светской этики","Основы религиозных культур и светской этики",{"$nulls":3},1,{"$f":"SUM(D16:G16)","v":1}]
[null,"Искусство","Музыка",1,1,1,1,4]
[null,null,"Изобразительное искусство",1,1,1,1,4]
[null,"Технология","Технология",1,1,1,1,4]
[null,"Физическая культура ","Физическая культура ",3,3,3,3,12]
[null,"ИТОГО:",null,{"$f":"SUM(D9:D20)","v":21},{"$f":"SUM(E9:E20)","v":25},{"$f":"SUM(F9:F20)","v":25},{"$f":"SUM(G9:G20)","v":26},97]
[null,"Часть, формируемая участниками образовательных отношений",null,null,1,1,null,2]
[null,"Русский язык и литературное чтение ","Русский язык",null,1,1,null,2]
[null,"Максимально допустимая недельная нагрузка ",null,{"$f":"SUM(D21,D22)","v":21},26,26,{"$f":"SUM(G21,G22)","v":26},99]

{"sheet":"4 кл..","index":3,"n_rows":23,"n_cols":8,"rows_kept":23,"merged":[[0,1,0,7],[1,1,1,7],[2,1,2,7],[3,1,3,7],[4,1,6,1],[4,2,6,2],[4,3,4,6],[4,7,6,7],[6,3,6,6],[7,1,8,1],[9,1,10,1],[15,1,16,1],[19,1,19,2],[20,1,20,2],[22,1,22,2]]}
[null,"УЧЕБНЫЙ ПЛАН"]
[null,"Муниципального бюджетного общеобразовательного учреждения \n \"Средняя общеобразовательная школа №175\" Советского района города Казани"]
[null,"на 2018/2019 учебный год "]
[null,"для 4 классов "]
[null,"Предметные области","Учебные предметы","классы",{"$nulls":3},"Всего часов"]
[{"$nulls":3},"1 класс                (2015-2016)","2 класс                (2016-2017)","3 класс                (2017-2018)","4 класс                (2018-2019)"]
[{"$nulls":3},"количество часов в неделю"]
[null,"Русский язык и литературное чтение ","Русский язык",4,5,5,5,{"$f":"SUM(D8:G8)","v":19}]
[null,null,"Литературное чтение",2,3,3,3,{"$f":"SUM(D9:G9)","v":11}]
[null,"Родной язык и литературное чтение на родном языке","Родной язык",2,2,2,2,8]
[null,null,"Литературное чтение на родном языке",1,1,1,1,4]
[null,"Иностранный язык","Английский язык",null,2,2,2,6]
[null,"Математика и информатика","Математика ",4,4,4,4,16]
[null,"Обществознание и естествознание","Окружающий мир ",2,2,2,2,8]
[null,"Основы религиозных культур и светской этики","Основы религиозных культур и светской этики",{"$nulls":3},1,{"$f":"SUM(D15:G15)","v":1}]
[null,"Искусство","Музыка",1,1,1,1,4]
[null,null,"Изобразительное искусство",1,1,1,1,4]
[null,"Технология","Технология",1,1,1,1,4]
[null,"Физическая культура ","Физическая культура ",3,3,3,3,12]
[null,"ИТОГО:",null,{"$f":"SUM(D8:D19)","v":21},{"$f":"SUM(E8:E19)","v":25},{"$f":"SUM(F8:F19)","v":25},{"$f":"SUM(G8:G19)","v":26},97]
[null,"Часть, формируемая участниками образовательных отношений",null,null,1,1,null,2]
[null,"Русский язык и литературное чтение ","Русский язык",null,1,1,null,2]
[null,"Максимально допустимая недельная нагрузка ",null,{"$f":"SUM(D20,D21)","v":21},26,26,{"$f":"SUM(G20,G21)","v":26},99]

{"sheet":"5 кл..","index":4,"n_rows":38,"n_cols":9,"rows_kept":38,"merged":[[0,1,0,8],[1,1,1,8],[2,1,2,8],[3,1,3,8],[5,1,7,1],[5,2,7,2],[5,3,5,7],[5,8,7,8],[7,3,7,7],[8,1,9,1],[10,1,11,1],[13,1,16,1],[17,1,19,1],[20,1,22,1],[23,1,24,1],[26,1,27,1],[28,1,28,2],[29,1,29,2],[30,1,30,2],[30,3,30,8],[31,1,31,2],[32,1,32,2],[33,1,33,2],[34,1,34,2],[35,1,35,2],[36,1,36,2],[37,1,37,2]]}
[null,"УЧЕБНЫЙ ПЛАН"]
[null,"Муниципального бюджетного общеобразовательного учреждения \n\"Средняя общеобразовательная школа №175\" Советского района города Казани"]
[null,"на 2018/2019 учебный год "]
[null,"для 5 классов "]
[]
[null,"Предметные области","Учебные предметы","классы",{"$nulls":4},"Всего часов"]
[{"$nulls":3},"5 класс                (2018-2019)","6 класс                (2019-2020)","7 класс                (2020-2021)","8 класс                (2021-2022)","9 класс                (2022-2023)"]
[{"$nulls":3},"количество часов в неделю"]
[null,"Русский язык и литература","Русский язык",5,6,4,3,3,{"$f":"SUM(D9:H9)","v":21}]
[null,null,"Литература",3,3,2,2,3,{"$f":"SUM(D10:H10)","v":13}]
[null,"Родной язык и родная литература","Родной язык",2,2,2,2,2,{"$f":"SUM(D11:H11)","v":10}]
[null,null,"Родная литература",1,1,1,1,1,{"$f":"SUM(D12:H12)","v":5}]
[null,"Иностранный язык","Английский язык ",3,3,3,3,3,15]
[null,"Математика и информатика","Математика ",5,5,{"$nulls":3},10]
[null,null,"Алгебра",null,null,3,3,3,9]
[null,null,"Геометрия",null,null,2,2,2,6]
[null,null,"Информатика",null,null,1,1,1,3]
[null,"Общественно-научные предметы","История",2,2,2,2,2,10]
[null,null,"Обществознание",null,1,1,1,1,4]
[null,null,"География",1,1,2,2,2,8]
[null,"Естественно-научные предметы","Физика",null,null,2,2,3,{"$f":"SUM(F21:H21)","v":7}]
[null,null,"Химия",{"$nulls":3},2,2,{"$f":"SUM(G22:H22)","v":4}]
[null,null,"Биология",1,1,1,2,2,7]
[null,"Искусство","Музыка",1,1,1,1,null,4]
[null,null,"Изобразительное искусство",1,1,1,null,null,3]
[null,"Технология","Технология",2,2,2,1,null,7]
[null,"Физическая культура и основы безопасности жизнедеятельности","Физическая культура ",3,3,3,3,3,15]
[null,null,"ОБЖ",{"$nulls":3},1,1,2]
[null,"ИТОГО:",null,{"$f":"SUM(D9:D28)","v":30},{"$f":"SUM(E9:E28)","v":32},{"$f":"SUM(F9:F28)","v":33},{"$f":"SUM(G9:G28)","v":34},{"$f":"SUM(H9:H28)","v":34},163]
[null,"Часть, формируемая участниками образовательных отношений",null,2,1,2,2,2,9]
[null,"Учебные предметы"]
[null,"Обществознание",null,1,{"$nulls":4},{"$f":"SUM(D32:H32)","v":1}]
[null,"Основы духовно-нравственной культуры народов России",null,1,{"$nulls":4},1]
[null,"Математика",null,null,1,{"$nulls":3},{"$f":"SUM(D34:H34)","v":1}]
[null,"Алгебра",{"$nulls":3},1,1,1,{"$f":"SUM(F35:H35)","v":3}]
[null,"Биология",{"$nulls":3},1,null,null,1]
[null,"Русский язык ",{"$nulls":4},1,1,{"$f":"SUM(D37:H37)","v":2}]
[null,"Максимально допустимая недельная нагрузка ",null,{"$f":"SUM(D29+D30)","v":32},33,35,36,36,172]

{"sheet":"6 кл..  ","index":5,"n_rows":38,"n_cols":9,"rows_kept":38,"merged":[[0,1,0,8],[1,1,1,8],[2,1,2,8],[3,1,3,8],[5,1,7,1],[5,2,7,2],[5,3,5,7],[5,8,7,8],[7,3,7,7],[8,1,9,1],[10,1,11,1],[13,1,16,1],[17,1,19,1],[20,1,22,1],[23,1,24,1],[26,1,27,1],[28,1,28,2],[29,1,29,2],[30,1,30,2],[30,3,30,8],[31,1,31,2],[32,1,32,2],[33,1,33,2],[34,1,34,2],[35,1,35,2],[36,1,36,2],[37,1,37,2]]}
[null,"УЧЕБНЫЙ ПЛАН"]
[null,"Муниципального бюджетного общеобразовательного учреждения \n\"Средняя общеобразовательная школа №175\" Советского района города Казани"]
[null,"на 2018/2019 учебный год "]
[null,"для 6 классов "]
[]
[null,"Предметные области","Учебные предметы","классы",{"$nulls":4},"Всего часов"]
[{"$nulls":3},"5 класс                (2017-2018)","6 класс                (2018-2019)","7 класс                (2019-2020)","8 класс                (2020-2021)","9 класс                (2021-2022)"]
[{"$nulls":3},"количество часов в неделю"]
[null,"Русский язык и литература","Русский язык",5,6,4,3,3,{"$f":"SUM(D9:H9)","v":21}]
[null,null,"Литература",3,3,2,2,3,{"$f":"SUM(D10:H10)","v":13}]
[null,"Родной язык и родная литература","Родной язык",2,2,2,2,2,{"$f":"SUM(D11:H11)","v":10}]
[null,null,"Родная литература",1,1,1,1,1,{"$f":"SUM(D12:H12)","v":5}]
[null,"Иностранный язык","Английский язык ",3,3,3,3,3,15]
[null,"Математика и информатика","Математика ",5,5,{"$nulls":3},10]
[null,null,"Алгебра",null,null,3,3,3,9]
[null,null,"Геометрия",null,null,2,2,2,6]
[null,null,"Информатика",null,null,1,1,1,3]
[null,"Общественно-научные предметы","История",2,2,2,2,2,10]
[null,null,"Обществознание",null,1,1,1,1,4]
[null,null,"География",1,1,2,2,2,8]
[null,"Естественно-научные предметы","Физика",null,null,2,2,3,{"$f":"SUM(F21:H21)","v":7}]
[null,null,"Химия",{"$nulls":3},2,2,{"$f":"SUM(G22:H22)","v":4}]
[null,null,"Биология",1,1,1,2,2,7]
[null,"Искусство","Музыка",1,1,1,1,null,4]
[null,null,"Изобразительное искусство",1,1,1,null,null,3]
[null,"Технология","Технология",2,2,2,1,null,7]
[null,"Физическая культура и ОБЖ","Физическая культура ",3,3,3,3,3,15]
[null,null,"ОБЖ",{"$nulls":3},1,1,2]
[null,"ИТОГО:",null,{"$f":"SUM(D9:D28)","v":30},{"$f":"SUM(E9:E28)","v":32},{"$f":"SUM(F9:F28)","v":33},{"$f":"SUM(G9:G28)","v":34},{"$f":"SUM(H9:H28)","v":34},163]
[null,"Часть, формируемая участниками образовательных отношений",null,2,1,2,2,2,9]
[null,"Учебные предметы"]
[null,"Обществознание",null,1,{"$nulls":4},{"$f":"SUM(D32:H32)","v":1}]
[null,"Основы духовно-нравственной культуры народов России",null,1,{"$nulls":4},1]
[null,"Математика",null,null,1,{"$nulls":3},{"$f":"SUM(D34:H34)","v":1}]
[null,"Алгебра",{"$nulls":3},1,1,1,{"$f":"SUM(F35:H35)","v":3}]
[null,"Биология",{"$nulls":3},1,null,null,1]
[null,"Русский язык ",{"$nulls":4},1,1,{"$f":"SUM(D37:H37)","v":2}]
[null,"Максимально допустимая недельная нагрузка ",null,{"$f":"SUM(D29+D30)","v":32},33,35,36,36,172]

{"sheet":"7 кл..","index":6,"n_rows":39,"n_cols":9,"rows_kept":39,"merged":[[1,1,1,8],[2,1,2,8],[3,1,3,8],[4,1,4,8],[6,1,8,1],[6,2,8,2],[6,3,6,7],[6,8,8,8],[8,3,8,7],[9,1,10,1],[11,1,12,1],[14,1,17,1],[18,1,20,1],[21,1,23,1],[24,1,25,1],[27,1,28,1],[29,1,29,2],[30,1,30,2],[31,1,31,2],[31,3,31,8],[32,1,32,2],[33,1,33,2],[34,1,34,2],[35,1,35,2],[36,1,36,2],[37,1,37,2],[38,1,38,2]]}
[]
[null,"УЧЕБНЫЙ ПЛАН"]
[null,"Муниципального бюджетного общеобразовательного учреждения \n\"Средняя общеобразовательная школа №175\" Советского района города Казани"]
[null,"на 2018/2019 учебный год "]
[null,"для 7 классов "]
[]
[null,"Предметные области","Учебные предметы","классы",{"$nulls":4},"Всего часов"]
[{"$nulls":3},"5 класс                (2016-2017)","6 класс                (2017-2018)","7 класс                (2018-2019)","8 класс                (2019-2020)","9 класс                (2020-2021)"]
[{"$nulls":3},"количество часов в неделю"]
[null,"Русский язык и литература","Русский язык",5,6,4,3,3,{"$f":"SUM(D10:H10)","v":21}]
[null,null,"Литература",3,3,2,2,3,{"$f":"SUM(D11:H11)","v":13}]
[null,"Родной язык и родная литература","Родной язык",2,2,2,2,2,{"$f":"SUM(D12:H12)","v":10}]
[null,null,"Родная литература",1,1,1,1,1,{"$f":"SUM(D13:H13)","v":5}]
[null,"Иностранный язык","Английский язык ",3,3,3,3,3,15]
[null,"Математика и информатика","Математика ",5,5,{"$nulls":3},10]
[null,null,"Алгебра",null,null,3,3,3,9]
[null,null,"Геометрия",null,null,2,2,2,6]
[null,null,"Информатика",null,null,1,1,1,3]
[null,"Общественно-научные предметы","История",2,2,2,2,2,10]
[null,null,"Обществознание",null,1,1,1,1,4]
[null,null,"География",1,1,2,2,2,8]
[null,"Естественно-научные предметы","Физика",null,null,2,2,3,{"$f":"SUM(F22:H22)","v":7}]
[null,null,"Химия",{"$nulls":3},2,2,{"$f":"SUM(G23:H23)","v":4}]
[null,null,"Биология",1,1,1,2,2,7]
[null,"Искусство","Музыка",1,1,1,1,null,4]
[null,null,"Изобразительное искусство",1,1,1,null,null,3]
[null,"Технология","Технология",2,2,2,1,null,7]
[null,"Физическая культура и ОБЖ","Физическая культура ",3,3,3,3,3,15]
[null,null,"ОБЖ",{"$nulls":3},1,1,2]
[null,"ИТОГО:",null,{"$f":"SUM(D10:D29)","v":30},{"$f":"SUM(E10:E29)","v":32},{"$f":"SUM(F10:F29)","v":33},{"$f":"SUM(G10:G29)","v":34},{"$f":"SUM(H10:H29)","v":34},163]
[null,"Часть, формируемая участниками образовательных отношений",null,2,1,2,2,2,9]
[null,"Учебные предметы"]
[null,"Обществознание",null,1,{"$nulls":4},{"$f":"SUM(D33:H33)","v":1}]
[null,"Основы духовно-нравственной культуры народов России",null,1,{"$nulls":4},1]
[null,"Математика",null,null,1,{"$nulls":3},{"$f":"SUM(D35:H35)","v":1}]
[null,"Алгебра",{"$nulls":3},1,1,1,{"$f":"SUM(F36:H36)","v":3}]
[null,"Биология",{"$nulls":3},1,null,null,{"$f":"SUM(D37:H37)","v":1}]
[null,"Русский язык",{"$nulls":4},1,1,2]
[null,"Максимально допустимая недельная нагрузка ",null,{"$f":"SUM(D30+D31)","v":32},33,35,36,36,{"$f":"SUM(I30+I31)","v":172}]

{"sheet":"8 кл..","index":7,"n_rows":37,"n_cols":9,"rows_kept":37,"merged":[[0,1,0,8],[1,1,1,8],[2,1,2,8],[3,1,3,8],[5,1,7,1],[5,2,7,2],[5,3,5,7],[5,8,7,8],[7,3,7,7],[8,1,9,1],[10,1,11,1],[13,1,16,1],[17,1,19,1],[20,1,22,1],[23,1,24,1],[26,1,27,1],[28,1,28,2],[29,1,29,2],[30,1,30,2],[30,3,30,8],[31,1,31,2],[32,1,32,2],[33,1,33,2],[34,1,34,2],[35,1,35,2],[36,1,36,2]]}
[null,"УЧЕБНЫЙ ПЛАН"]
[null,"Муниципального бюджетного общеобразовательного учреждения \n\"Средняя общеобразовательная школа №175\" Советского района города Казани"]
[null,"на 2018/2019 учебный год "]
[null,"для 8 классов"]
[]
[null,"Предметные области","Учебные предметы","классы",{"$nulls":4},"Всего часов"]
[{"$nulls":3},"5 класс                (2015-2016)","6 класс                (2016-2017)","7 класс                (2017-2018)","8 класс                (2018-2019)","9 класс                (2019-2020)"]
[{"$nulls":3},"количество часов в неделю"]
[null,"Русский язык и литература","Русский язык",5,6,4,3,3,{"$f":"SUM(D9:H9)","v":21}]
[null,null,"Литература",3,3,2,2,3,{"$f":"SUM(D10:H10)","v":13}]
[null,"Родной язык и родная литература","Родной язык",2,2,2,2,2,10]
[null,null,"Родная литература",1,1,1,1,1,5]
[null,"Иностранный язык","Английский язык ",3,3,3,3,3,15]
[null,"Математика и информатика","Математика ",5,5,{"$nulls":3},10]
[null,null,"Алгебра",null,null,3,3,3,9]
[null,null,"Геометрия",null,null,2,2,2,6]
[null,null,"Информатика",null,null,1,1,1,3]
[null,"Общественно-научные предметы","История",2,2,2,2,2,10]
[null,null,"Обществознание",null,1,1,1,1,4]
[null,null,"География",1,1,2,2,2,8]
[null,"Естественно-научные предметы","Физика",null,null,2,2,3,{"$f":"SUM(F21:H21)","v":7}]
[null,null,"Химия",{"$nulls":3},2,2,{"$f":"SUM(G22:H22)","v":4}]
[null,null,"Биология",1,1,1,2,2,7]
[null,"Искусство","Музыка",1,1,1,1,null,4]
[null,null,"Изобразительное искусство",1,1,1,null,null,3]
[null,"Технология","Технология",2,2,2,1,null,7]
[null,"Физическая культура и ОБЖ","Физическая культура ",3,3,3,3,3,15]
[null,null,"ОБЖ",{"$nulls":3},1,1,2]
[null,"ИТОГО:",null,{"$f":"SUM(D9:D28)","v":30},{"$f":"SUM(E9:E28)","v":32},{"$f":"SUM(F9:F28)","v":33},{"$f":"SUM(G9:G28)","v":34},{"$f":"SUM(H9:H28)","v":34},163]
[null,"Часть, формируемая участниками образовательных отношений",null,2,1,2,2,2,9]
[null,"Учебные предметы"]
[null,"Обществознание",null,1,{"$nulls":4},{"$f":"SUM(D32:H32)","v":1}]
[null,"Основы духовно-нравственной культуры народов России",null,1,{"$nulls":4},1]
[null,"Математика",null,null,1,{"$nulls":3},{"$f":"SUM(D34:H34)","v":1}]
[null,"Алгебра",{"$nulls":3},1,1,1,{"$f":"SUM(F35:H35)","v":3}]
[null,"Русский язык ",{"$nulls":3},1,1,1,{"$f":"SUM(D36:H36)","v":3}]
[null,"Максимально допустимая недельная нагрузка ",null,{"$f":"SUM(D29+D30)","v":32},33,35,36,36,{"$f":"SUM(I29+I30)","v":172}]

{"sheet":"9-ФК..","index":8,"n_rows":41,"n_cols":7,"rows_kept":41,"merged":[[0,0,0,7],[1,0,1,7],[2,0,2,7],[3,0,3,7],[5,0,7,0],[5,1,5,5],[5,6,7,6],[7,1,7,5]]}
["УЧЕБНЫЙ ПЛАН"]
["Муниципального бюджетного общеобразовательного учреждения \n \"Средняя общеобразовательная школа №175\" Советского района города Казани"]
["на 2018/2019 учебный год "]
["для 9 классов"]
[]
["Учебные предметы","классы",{"$nulls":4},"Всего часов"]
[null,"5 класс                (2014-2015)","6 класс                (2015-2016)","7 класс                (2016-2017)","8 класс                (2017-2018)","9 класс                (2018-2019)"]
[null,"количество часов в неделю"]
["Русский язык",3,3,3,3,2,{"$f":"SUM(B9:F9)","v":14}]
["Литература",2,2,2,2,3,{"$f":"SUM(B10:F10)","v":11}]
["Татарский язык",3,3,3,null,null,9]
["Татарская литература",2,2,2,null,null,6]
["Английский язык",3,3,3,3,3,15]
["Математика",5,5,5,5,5,25]
["Информатика и ИКТ",{"$nulls":3},1,2,3]
["История (включая Историю татарского народа и Татарстана)",2,2,2,2,2,10]
["Обществознание (включая экономику и право)",null,1,1,1,1,4]
["География",null,1,2,2,2,7]
["Природоведение",2,{"$nulls":4},2]
["Физика",null,null,2,2,2,6]
["Химия",{"$nulls":3},2,2,4]
["Биология",null,1,2,2,2,7]
["Искусство (Музыка)",1,1,1,null,null,3]
["Искусство (ИЗО)",1,1,1,null,null,3]
["Искусство ",{"$nulls":3},1,1,2]
["Технология",2,2,2,1,null,7]
["Основы безопасности жизнедеятельности",{"$nulls":3},1,null,1]
["Физическая культура",3,3,3,3,3,15]
["ИТОГО:",{"$f":"SUM(B9:B28)","v":29},{"$f":"SUM(C9:C28)","v":30},{"$f":"SUM(D9:D28)","v":34},{"$f":"SUM(E9:E28)","v":31},{"$f":"SUM(F9:F28)","v":30},154]
["Региональный (национально-региональный) компонент \n",{"$nulls":3},3,3,{"$f":"SUM(B30:F30)","v":6}]
["Родной язык",{"$nulls":3},2,2,{"$f":"SUM(E31:F31)","v":4}]
["Родная литература",{"$nulls":3},1,1,{"$f":"SUM(E32:F32)","v":2}]
["Компонент   \nобразовательного учреждения",3,3,1,2,1,10]
["Русский язык",1,1,1,1,1,5]
["Математика",2,2,null,1,null,5]
["Элективные курсы",{"$nulls":4},2,2]
["«Процентные расчеты \nна каждый день» (по математике)",{"$nulls":4},0.5,0.5]
["«Решение нестандартных \nзадач по математике» ",{"$nulls":4},0.5,0.5]
["«Тайны слова» ",{"$nulls":4},0.5,0.5]
["«Культура речи» ",{"$nulls":4},0.5,0.5]
["ИТОГО",{"$f":"SUM(B30+B29)","v":29},{"$f":"SUM(C30+C29)","v":30},{"$f":"SUM(D30+D29)","v":34},36,36,172]

{"sheet":"10а (унив.)","index":9,"n_rows":44,"n_cols":5,"rows_kept":44,"merged":[[1,0,1,7],[2,0,2,7],[3,0,3,7],[4,0,4,7],[6,1,6,6],[7,0,7,6],[8,0,8,6],[9,2,9,3],[9,4,9,6],[10,2,10,3],[10,4,10,6],[11,2,11,3],[11,4,11,6],[12,2,12,3],[12,4,12,6],[13,2,13,3],[13,4,13,6],[14,2,14,3],[14,4,14,6],[15,2,15,3],[15,4,15,6],[16,2,16,3],[16,4,16,6],[17,2,17,3],[17,4,17,6],[18,2,18,3],[18,4,18,6],[19,2,19,3],[19,4,19,6],[20,2,20,3],[20,4,20,6],[21,2,21,3],[21,4,21,6],[22,2,22,3],[22,4,22,6],[23,2,23,3],[23,4,23,6],[24,2,24,3],[24,4,24,6],[25,2,25,3],[25,4,25,6],[26,2,26,3],[26,4,26,6],[27,2,27,3],[27,4,27,6],[28,2,28,3],[28,4,28,6],[29,2,29,3],[29,4,29,6],[30,2,30,3],[30,4,30,6],[31,2,31,3],[31,4,31,6],[32,2,32,3],[32,4,32,6],[33,2,33,3],[33,4,33,6],[34,2,34,3],[34,4,34,6],[35,2,35,3],[35,4,35,6],[36,2,36,3],[36,4,36,6],[37,2,37,3],[37,4,37,6],[38,2,38,3],[38,4,38,6],[39,2,39,3],[39,4,39,6],[40,2,40,3],[40,4,40,6],[41,2,41,3],[41,4,41,6],[42,2,42,3],[42,4,42,6],[43,2,43,3],[43,4,43,6]]}
[]
["УЧЕБНЫЙ ПЛАН"]
["Муниципального бюджетного общеобразовательного учреждения \n\"Средняя общеобразовательная школа №175\" Советского района города Казани"]
["на 2018/2019 учебный год "]
["для 10а класса"]
[]
["Учебные предметы","Число недельных часов за два года обучения"]
["Федеральный и региональный компоненты"]
["Базовые учебные предметы"]
[null,"2018/2019           (10 класс)","2019/2020                      (11 класс)",null,"Итого"]
["Русский язык",1,1,null,{"$f":"SUM(B11:D11)","v":2}]
["Литература",3,3,null,{"$f":"SUM(B12:D12)","v":6}]
["Английский язык",3,3,null,6]
["Математика",4,4,null,8]
["Информатика и ИКТ",1,1,null,2]
["История",2,2,null,4]
["Обществознание (включая экономику и право)",2,2,null,4]
["География",1,1,null,2]
["Физика",2,2,null,4]
["Астрономия",null,1,null,1]
["Химия",1,1,null,2]
["Биология",1,1,null,{"$f":"SUM(B22:D22)","v":2}]
["Технология",1,1,null,{"$f":"SUM(B23:D23)","v":2}]
["Основы безопасности жизнедеятельности",1,1,null,{"$f":"SUM(B24:D24)","v":2}]
["Физическая культура",3,3,null,6]
["ИТОГО:",{"$f":"SUM(B11:B25)","v":26},{"$f":"SUM(C11:D25)","v":27},null,{"$f":"SUM(E11:G25)","v":53}]
["Региональный (национально-регио- \nнальный) компонент \n",2,2,null,4]
["Родной язык",1,1,null,2]
["Родная литература",1,1,null,2]
["Компонент образовательного учреждения",7,6,null,13]
["Русский язык",1,1,null,{"$f":"SUM(B31:D31)","v":2}]
["Математика",1,1,null,{"$f":"SUM(B32:D32)","v":2}]
["Физика",1,1,null,2]
["Химия",1,1,null,{"$f":"SUM(B34:D34)","v":2}]
["Биология",1,1,null,{"$f":"SUM(B35:D35)","v":2}]
["Информатика и ИКТ",1,1,null,{"$f":"SUM(B36:D36)","v":2}]
["Английский язык",1,null,null,1]
["Элективные курсы",2,2,null,{"$f":"SUM(B38:D38)","v":4}]
["«Углубленное изучение некоторых вопросов математики»",1,null,null,{"$f":"SUM(B39:D39)","v":1}]
["«Решение текстовых задач по математике»",null,1,null,1]
["«Азбука журналистики»",0.5,null,null,0.5]
["«От текста - к творчеству»",0.5,null,null,0.5]
["«Решение сложных и нестандартных задач по математике»",null,1,null,1]
["ИТОГО:",37,37,null,74]

{"sheet":"11а (фил..)","index":10,"n_rows":42,"n_cols":4,"rows_kept":42,"merged":[[1,0,1,4],[2,0,2,4],[3,0,3,4],[4,0,4,4],[5,0,5,4],[6,1,6,3],[7,0,7,3],[8,0,8,3],[21,0,21,3]]}
[]
["УЧЕБНЫЙ ПЛАН"]
["Муниципального бюджетного общеобразовательного учреждения \n \"Средняя общеобразовательная школа №175\" Советского района города Казани"]
["на 2018/2019 учебный год "]
["для 11а класса"]
["филологического профиля "]
["Учебные предметы","Число недельных часов \nза два года обучения"]
["Федеральный и региональный компоненты"]
["Базовые учебные предметы"]
[null,"2017/2018           \n(10 класс)","2018/2019          \n (11 класс)","Итого"]
["Литература",3,3,6]
["Английский язык",3,3,6]
["Математика",4,4,8]
["Обществознание (включая экономику и право)",2,2,4]
["Физика",2,2,4]
["Астрономия",null,1,1]
["Химия",1,1,2]
["Биология",1,1,2]
["Физическая культура",3,3,6]
["Основы безопасности жизнедеятельности",1,1,2]
["ИТОГО:",{"$f":"SUM(B11:B20)","v":20},{"$f":"SUM(C11:C20)","v":21},41]
["Профильные учебные предметы"]
["Русский язык",3,3,6]
["История",4,4,8]
["ИТОГО:",{"$f":"SUM(B23:B24)","v":7},{"$f":"SUM(C23:C24)","v":7},14]
["Региональный (национально-регио- \nнальный) компонент \n",2,2,4]
["Родной язык",1,1,2]
["Родная литература",1,1,2]
["Компонент образовательного учреждения",6,6,12]
["Математика",1,1,2]
["Информатика и ИКТ",1,1,2]
["География",1,1,2]
["Химия",1,1,2]
["Литература",1,1,2]
["Биология",1,1,2]
["Элективные курсы",2,1,3]
["«Культура делового общения»\n(на английском языке)",1,null,1]
["«Решение текстовых задач» (по математике)",0.5,null,0.5]
["«Углубленное изучение некоторых вопросов математики»",0.5,null,0.5]
["«Экономические расчеты» (по математике)",null,0.5,0.5]
["«Решение сложных и нестандартных задач по математике»",null,0.5,0.5]
["ИТОГО:",37,37,74]

{"sheet":"11б (ест.-науч.)","index":11,"n_rows":39,"n_cols":4,"rows_kept":39,"merged":[[1,0,1,4],[2,0,2,4],[3,0,3,4],[4,0,4,4],[5,0,5,4],[6,1,6,3],[7,0,7,3],[8,0,8,3],[21,0,21,3]]}
[]
["УЧЕБНЫЙ ПЛАН"]
["Муниципального бюджетного общеобразовательного учреждения \n \"Средняя общеобразовательная школа №175\" Советского района города Казани"]
["на 2018/2019 учебный год "]
["для 11б класса"]
["естественно-научного профиля"]
["Учебные предметы","Число недельных часов за два года обучения"]
["Федеральный и региональный компоненты"]
["Базовые учебные предметы"]
[null,"2017/2018           \n(10 класс)","2018/2019          \n (11 класс)","Итого"]
["Русский язык",1,1,2]
["Литература",3,3,6]
["Английский язык",3,3,6]
["История",2,2,4]
["Обществознание (включая экономику и право)",2,2,4]
["Физика",2,2,4]
["Астрономия",null,1,1]
["География",1,1,2]
["Физическая культура",3,3,6]
["Основы безопасности жизнедеятельности",1,1,2]
["ИТОГО:",{"$f":"SUM(B11:B20)","v":18},{"$f":"SUM(C11:C20)","v":19},{"$f":"SUM(D11:D20)","v":37}]
["Профильные учебные предметы"]
["Химия",3,3,6]
["Математика",6,6,12]
["Биология",3,3,6]
["ИТОГО:",12,12,24]
["Региональный (национально-регио- \nнальный) компонент \n",2,2,4]
["Родной язык",1,1,2]
["Родная литература",1,1,2]
["Компонент образовательного учреждения",2,2,4]
["Информатика и ИКТ",1,1,2]
["Русский язык",1,1,2]
["Элективные курсы",3,2,5]
["«Методы решения задач повышенной сложности по физике»",1,null,1]
["«Решение текстовых задач по \nматематике»",0.5,null,0.5]
["«Углубленное изучение некоторых вопросов математики»",0.5,null,0.5]
["«Решение сложных и нестандартных задач по математике»",null,1,1]
["«Решение расчетных задач по химии»",1,1,2]
["ИТОГО:",37,37,74]